[Event "Live Chess"]
[Site "Chess.com"]
[Date "2024.06.01"]
[Round "-"]
[White "Dhaydon19"]
[Black "YrrriKharkiv"]
[Result "1-0"]
[WhiteElo "2700"]
[BlackElo "2123"]
[TimeControl "300"]
[EndTime "9:51:53 PDT"]
[Termination "Dhaydon19 won by resignation"]

1. d4 {[%clk 0:04:58.6]} 1... Nf6 {[%clk 0:04:56.3]} 2. Nf3 {[%clk 0:04:58.3]}
2... c5 {[%clk 0:04:55.5]} 3. g3 {[%clk 0:04:58]} 3... cxd4 {[%clk 0:04:54.3]}
4. Nxd4 {[%clk 0:04:57.7]} 4... Nc6 {[%clk 0:04:53.3]} 5. Nf3 {[%clk 0:04:57.4]}
5... g6 {[%clk 0:04:52.7]} 6. Bg2 {[%clk 0:04:57]} 6... Bg7 {[%clk 0:04:52]} 7.
O-O {[%clk 0:04:56.7]} 7... d6 {[%clk 0:04:51.3]} 8. c3 {[%clk 0:04:56.4]} 8...
O-O {[%clk 0:04:50.5]} 9. Nbd2 {[%clk 0:04:56.1]} 9... Qc7 {[%clk 0:04:47.2]}
10. Qc2 {[%clk 0:04:55.5]} 10... Rb8 {[%clk 0:04:42.5]} 11. Ne4 {[%clk
0:04:54.6]} 11... Bf5 {[%clk 0:04:39.9]} 12. Nxf6+ {[%clk 0:04:53.7]} 12... Bxf6
{[%clk 0:04:38.6]} 13. e4 {[%clk 0:04:53.4]} 13... Bg4 {[%clk 0:04:36.1]} 14.
Qd3 {[%clk 0:04:52]} 14... Bxf3 {[%clk 0:04:31.8]} 15. Qxf3 {[%clk 0:04:50.8]}
15... Bg7 {[%clk 0:04:28.7]} 16. Bf4 {[%clk 0:04:48.6]} 16... Qb6 {[%clk
0:04:26.2]} 17. Qe2 {[%clk 0:04:47]} 17... Ne5 {[%clk 0:04:23.5]} 18. Rfd1
{[%clk 0:04:45]} 18... Rbc8 {[%clk 0:04:19.6]} 19. h3 {[%clk 0:04:43.7]} 19...
Nc4 {[%clk 0:04:13.2]} 20. Rab1 {[%clk 0:04:41.7]} 20... Rc7 {[%clk 0:04:09.7]}
21. Bf1 {[%clk 0:04:40.5]} 21... Ne5 {[%clk 0:04:08.5]} 22. Be3 {[%clk
0:04:38.6]} 22... Qc6 {[%clk 0:04:03.5]} 23. Bg2 {[%clk 0:04:35.7]} 23... Qc4
{[%clk 0:03:59.8]} 24. Qxc4 {[%clk 0:04:32.2]} 24... Rxc4 {[%clk 0:03:55.8]} 25.
Bxa7 {[%clk 0:04:29.9]} 25... Ra4 {[%clk 0:03:45]} 26. Bd4 {[%clk 0:04:28.7]}
26... Rxa2 {[%clk 0:03:39.7]} 27. Bxe5 {[%clk 0:04:23.4]} 27... Bxe5 {[%clk
0:03:35.7]} 28. Rd5 {[%clk 0:04:23]} 28... b6 {[%clk 0:03:24.1]} 29. Rb5 {[%clk
0:04:21.9]} 29... Rb8 {[%clk 0:03:22.4]} 30. f4 {[%clk 0:04:21]} 30... Bg7
{[%clk 0:03:19.3]} 31. Bf1 {[%clk 0:04:20.5]} 31... Ra5 {[%clk 0:03:12.7]} 32.
Rb3 {[%clk 0:04:14.6]} 32... e6 {[%clk 0:02:50.4]} 33. Rd1 {[%clk 0:04:13.4]}
33... d5 {[%clk 0:02:49.3]} 34. exd5 {[%clk 0:04:12.4]} 34... exd5 {[%clk
0:02:45.2]} 35. Bg2 {[%clk 0:04:10.5]} 35... Rc5 {[%clk 0:02:39.8]} 36. Rxd5
{[%clk 0:04:07.6]} 36... Rxd5 {[%clk 0:02:35.5]} 37. Bxd5 {[%clk 0:04:07.2]}
37... Bf8 {[%clk 0:02:29.7]} 38. Rb5 {[%clk 0:04:00]} 38... Rd8 {[%clk
0:02:27.2]} 39. c4 {[%clk 0:03:49.3]} 39... Kg7 {[%clk 0:02:22.9]} 40. b4 {[%clk
0:03:47.3]} 40... Rd6 {[%clk 0:02:20]} 41. Kg2 {[%clk 0:03:45.9]} 41... h6
{[%clk 0:02:18.6]} 42. Kf3 {[%clk 0:03:45.4]} 42... Be7 {[%clk 0:02:16.8]} 43.
Ke4 {[%clk 0:03:44.7]} 43... Kf6 {[%clk 0:02:12.2]} 44. c5 {[%clk 0:03:43.1]}
44... bxc5 {[%clk 0:02:09.1]} 45. bxc5 {[%clk 0:03:42.7]} 45... Bd8 {[%clk
0:02:02.2]} 46. cxd6 {[%clk 0:03:41.5]} 1-0

[Event "Live Chess"]
[Site "Chess.com"]
[Date "2024.06.01"]
[Round "-"]
[White "Pizzaman313"]
[Black "LL220284LL"]
[Result "0-1"]
[WhiteElo "1194"]
[BlackElo "2581"]
[TimeControl "300"]
[EndTime "9:51:59 PDT"]
[Termination "LL220284LL won by resignation"]

1. e4 {[%clk 0:04:57.7]} 1... g6 {[%clk 0:04:59.9]} 2. d4 {[%clk 0:04:49.2]}
2... Bg7 {[%clk 0:04:55.8]} 3. c4 {[%clk 0:04:38.1]} 3... b6 {[%clk 0:04:49.7]}
4. Nc3 {[%clk 0:04:34.8]} 4... Bb7 {[%clk 0:04:48.5]} 5. Nf3 {[%clk 0:04:31.7]}
5... d6 {[%clk 0:04:46.8]} 6. Be2 {[%clk 0:04:28.7]} 6... Nd7 {[%clk 0:04:45.4]}
7. O-O {[%clk 0:04:27.6]} 7... Ngf6 {[%clk 0:04:44.2]} 8. Qc2 {[%clk 0:04:17]}
8... e5 {[%clk 0:04:40.1]} 9. d5 {[%clk 0:04:10.6]} 9... O-O {[%clk 0:04:38.1]}
10. Re1 {[%clk 0:03:45.6]} 10... a5 {[%clk 0:04:34.8]} 11. Nb5 {[%clk
0:03:38.7]} 11... Nc5 {[%clk 0:04:30.4]} 12. Bd3 {[%clk 0:03:20.8]} 12... Bc8
{[%clk 0:04:25.3]} 13. Be3 {[%clk 0:03:13.6]} 13... Nxd3 {[%clk 0:04:22.2]} 14.
Qxd3 {[%clk 0:03:12]} 14... Ng4 {[%clk 0:04:21]} 15. h3 {[%clk 0:03:04]} 15...
Nxe3 {[%clk 0:04:19.1]} 16. Qxe3 {[%clk 0:03:02.1]} 16... f5 {[%clk 0:04:17.5]}
17. a3 {[%clk 0:02:30.4]} 17... fxe4 {[%clk 0:04:13.3]} 18. Qxe4 {[%clk
0:02:29.1]} 18... Bf5 {[%clk 0:04:12.2]} 19. Qe3 {[%clk 0:02:25.8]} 19... e4
{[%clk 0:04:06.1]} 20. Nfd4 {[%clk 0:02:21.8]} 20... Qd7 {[%clk 0:04:03]} 21.
Rab1 {[%clk 0:02:09.7]} 21... h5 {[%clk 0:04:01.3]} 22. Nc6 {[%clk 0:02:01.4]}
22... Rae8 {[%clk 0:03:58.3]} 23. Nbd4 {[%clk 0:01:46.9]} 23... Kh7 {[%clk
0:03:54.7]} 24. Nxf5 {[%clk 0:01:11.7]} 24... Qxf5 {[%clk 0:03:54.6]} 25. Re2
{[%clk 0:01:07.6]} 25... Bh6 {[%clk 0:03:52.1]} 26. Qb3 {[%clk 0:00:57.4]} 26...
e3 {[%clk 0:03:47]} 27. Rf1 {[%clk 0:00:30.8]} 27... exf2+ {[%clk 0:03:45.2]}
28. Rfxf2 {[%clk 0:00:28.6]} 28... Qxf2+ {[%clk 0:03:43.7]} 29. Rxf2 {[%clk
0:00:28.2]} 29... Re1+ {[%clk 0:03:43.2]} 30. Kh2 {[%clk 0:00:26.5]} 30... Rxf2
{[%clk 0:03:42.3]} 31. Qg3 {[%clk 0:00:19.5]} 31... Bf4 {[%clk 0:03:41.2]} 0-1

[Event "Live Chess"]
[Site "Chess.com"]
[Date "2024.06.01"]
[Round "-"]
[White "defenderalist"]
[Black "Trendle"]
[Result "0-1"]
[WhiteElo "1513"]
[BlackElo "2621"]
[TimeControl "300"]
[EndTime "9:52:11 PDT"]
[Termination "Trendle won on time"]

1. e4 {[%clk 0:04:58.4]} 1... e5 {[%clk 0:04:58.7]} 2. f4 {[%clk 0:04:57.1]}
2... d5 {[%clk 0:04:53.7]} 3. exd5 {[%clk 0:04:48.4]} 3... e4 {[%clk 0:04:52.4]}
4. Bb5+ {[%clk 0:04:36.3]} 4... c6 {[%clk 0:04:48.7]} 5. dxc6 {[%clk 0:04:33.4]}
5... Nxc6 {[%clk 0:04:47.5]} 6. Bxc6+ {[%clk 0:04:28.9]} 6... bxc6 {[%clk
0:04:46]} 7. Ne2 {[%clk 0:04:24.1]} 7... Qh4+ {[%clk 0:04:37.3]} 8. Ng3 {[%clk
0:04:15.3]} 8... Nf6 {[%clk 0:04:27.9]} 9. O-O {[%clk 0:04:01.2]} 9... Bc5+
{[%clk 0:04:22.5]} 10. d4 {[%clk 0:03:55.3]} 10... exd3+ {[%clk 0:04:20.6]} 11.
Kh1 {[%clk 0:03:50.4]} 11... Ng4 {[%clk 0:04:18]} 12. Qe1+ {[%clk 0:03:39.9]}
12... Be6 {[%clk 0:04:11.2]} 13. h3 {[%clk 0:03:33.6]} 13... dxc2 {[%clk
0:04:00.5]} 14. f5 {[%clk 0:03:09.6]} 14... O-O {[%clk 0:03:54.8]} 15. fxe6
{[%clk 0:02:59.4]} 15... cxb1=Q {[%clk 0:03:45.1]} 16. Rxb1 {[%clk 0:02:58]}
16... Nf2+ {[%clk 0:03:14.9]} 17. Rxf2 {[%clk 0:02:41.4]} 17... Qxg3 {[%clk
0:03:05.2]} 18. exf7+ {[%clk 0:02:28.2]} 18... Rxf7 {[%clk 0:03:00.2]} 19. Re2
{[%clk 0:02:09.3]} 19... Qd3 {[%clk 0:02:52.8]} 20. Be3 {[%clk 0:01:56.8]} 20...
Bb4 {[%clk 0:02:47.9]} 21. Bd2 {[%clk 0:01:49.9]} 21... Bd6 {[%clk 0:02:37]} 22.
Re8+ {[%clk 0:01:22.9]} 22... Rxe8 {[%clk 0:02:30.3]} 23. Qxe8+ {[%clk
0:01:20.9]} 23... Rf8 {[%clk 0:02:29.9]} 24. Qe6+ {[%clk 0:01:18.5]} 24... Kh8
{[%clk 0:02:29.2]} 25. Qe1 {[%clk 0:00:33.9]} 25... Bg3 {[%clk 0:02:20]} 26. Qd1
{[%clk 0:00:03.9]} 26... Rd8 {[%clk 0:02:17.8]} 0-1

[Event "Live Chess"]
[Site "Chess.com"]
[Date "2024.06.01"]
[Round "-"]
[White "TigerTank70"]
[Black "TC2304"]
[Result "0-1"]
[WhiteElo "2169"]
[BlackElo "2348"]
[TimeControl "300"]
[EndTime "9:52:16 PDT"]
[Termination "TC2304 won on time"]

1. e4 {[%clk 0:04:57.9]} 1... Nc6 {[%clk 0:04:59.4]} 2. d4 {[%clk 0:04:56.7]}
2... e5 {[%clk 0:04:58.1]} 3. d5 {[%clk 0:04:55.6]} 3... Nce7 {[%clk 0:04:57.8]}
4. c4 {[%clk 0:04:52.3]} 4... Ng6 {[%clk 0:04:56.1]} 5. Nc3 {[%clk 0:04:48.2]}
5... Bb4 {[%clk 0:04:55.3]} 6. Bd2 {[%clk 0:04:47.1]} 6... Nf6 {[%clk
0:04:51.7]} 7. f3 {[%clk 0:04:43.3]} 7... a5 {[%clk 0:04:45.6]} 8. Qb3 {[%clk
0:04:33.6]} 8... d6 {[%clk 0:04:42.3]} 9. a3 {[%clk 0:04:32.4]} 9... Bc5 {[%clk
0:04:37.9]} 10. Qb5+ {[%clk 0:04:22.8]} 10... c6 {[%clk 0:04:22]} 11. Qb3 {[%clk
0:04:16.2]} 11... O-O {[%clk 0:04:13.8]} 12. Nge2 {[%clk 0:04:14.4]} 12... cxd5
{[%clk 0:03:56.3]} 13. cxd5 {[%clk 0:04:10.3]} 13... Nh5 {[%clk 0:03:32.1]} 14.
O-O-O {[%clk 0:04:00]} 14... Bd7 {[%clk 0:03:23.5]} 15. g4 {[%clk 0:03:58.2]}
15... Nhf4 {[%clk 0:03:22.2]} 16. Nxf4 {[%clk 0:03:48.4]} 16... Nxf4 {[%clk
0:03:20.7]} 17. Bxf4 {[%clk 0:03:34.3]} 17... exf4 {[%clk 0:03:19.3]} 18. Bb5
{[%clk 0:03:33.9]} 18... Rc8 {[%clk 0:03:08.6]} 19. Kb1 {[%clk 0:03:21.8]} 19...
Qb6 {[%clk 0:02:57.4]} 20. Qa4 {[%clk 0:03:15.1]} 20... Bxb5 {[%clk 0:02:51.1]}
21. Nxb5 {[%clk 0:03:13.6]} 21... Be3 {[%clk 0:02:44.4]} 22. Rd3 {[%clk
0:03:07.6]} 22... Rc5 {[%clk 0:02:43.3]} 23. Rb3 {[%clk 0:03:05.6]} 23... Rfc8
{[%clk 0:02:34.8]} 24. Nc3 {[%clk 0:02:57.8]} 24... Qa6 {[%clk 0:02:19.2]} 25.
Qd7 {[%clk 0:02:48.7]} 25... Qd3+ {[%clk 0:01:59.5]} 26. Ka2 {[%clk 0:02:47.4]}
26... Qc4 {[%clk 0:01:47]} 27. Qa4 {[%clk 0:02:02.1]} 27... Qxa4 {[%clk
0:01:32.4]} 28. Nxa4 {[%clk 0:02:02]} 28... b5 {[%clk 0:01:32.2]} 29. Nxc5
{[%clk 0:01:59.8]} 29... Rxc5 {[%clk 0:01:28.2]} 30. Kb1 {[%clk 0:01:49.4]}
30... f6 {[%clk 0:01:19.9]} 31. Re1 {[%clk 0:01:45.3]} 31... Kf7 {[%clk
0:01:16.9]} 32. Rd3 {[%clk 0:01:15.4]} 32... g6 {[%clk 0:01:11]} 33. b3 {[%clk
0:01:12.8]} 33... f5 {[%clk 0:01:06.8]} 34. gxf5 {[%clk 0:01:04.8]} 34... gxf5
{[%clk 0:01:05.9]} 35. Rdxe3 {[%clk 0:00:47.2]} 35... fxe3 {[%clk 0:01:05]} 36.
Rxe3 {[%clk 0:00:46.7]} 36... Kf6 {[%clk 0:01:02.9]} 37. Kb2 {[%clk 0:00:43.5]}
37... b4 {[%clk 0:01:02.1]} 38. Rd3 {[%clk 0:00:32.6]} 38... fxe4 {[%clk
0:00:42.4]} 39. fxe4 {[%clk 0:00:30.9]} 39... Ke5 {[%clk 0:00:42.3]} 40. Re3
{[%clk 0:00:21.7]} 40... Rc8 {[%clk 0:00:41.8]} 41. axb4 {[%clk 0:00:16.9]}
41... axb4 {[%clk 0:00:40.7]} 42. Rh3 {[%clk 0:00:15.2]} 42... Rg8 {[%clk
0:00:38.5]} 43. Rxh7 {[%clk 0:00:10.2]} 43... Rg2+ {[%clk 0:00:36.2]} 44. Kc1
{[%clk 0:00:09.3]} 44... Kxe4 {[%clk 0:00:33.9]} 45. Rb7 {[%clk 0:00:07.6]}
45... Kd3 {[%clk 0:00:25]} 46. Rxb4 {[%clk 0:00:06.8]} 46... Kc3 {[%clk
0:00:23.5]} 47. Rc4+ {[%clk 0:00:06.4]} 47... Kxb3 {[%clk 0:00:23.2]} 48. Rh4
{[%clk 0:00:05.6]} 48... Kc3 {[%clk 0:00:20.8]} 49. Kd1 {[%clk 0:00:04.6]} 49...
Kd3 {[%clk 0:00:20.1]} 50. Ke1 {[%clk 0:00:04]} 50... Rg5 {[%clk 0:00:18.5]} 51.
Rh3+ {[%clk 0:00:00.5]} 51... Ke4 {[%clk 0:00:17]} 52. Rh6 {[%clk 0:00:00.4]}
52... Rxd5 {[%clk 0:00:15.1]} 0-1

[Event "Live Chess"]
[Site "Chess.com"]
[Date "2024.06.01"]
[Round "-"]
[White "Richardallis"]
[Black "ACM42"]
[Result "0-1"]
[WhiteElo "1925"]
[BlackElo "2209"]
[TimeControl "300"]
[EndTime "9:52:20 PDT"]
[Termination "ACM42 won - game abandoned"]

1. d4 {[%clk 0:04:56.2]} 1... Nf6 {[%clk 0:04:55.5]} 2. Nf3 {[%clk 0:04:55.3]}
2... g6 {[%clk 0:04:53.6]} 3. Bg5 {[%clk 0:04:54.6]} 3... Bg7 {[%clk 0:04:46]}
4. Nbd2 {[%clk 0:04:53.5]} 4... d6 {[%clk 0:04:41.5]} 5. c3 {[%clk 0:04:51.7]}
5... O-O {[%clk 0:04:27]} 6. e4 {[%clk 0:04:50.2]} 6... Nbd7 {[%clk 0:04:21.4]}
7. Bc4 {[%clk 0:04:48]} 7... e5 {[%clk 0:04:10.2]} 8. dxe5 {[%clk 0:04:47.2]}
8... Nxe5 {[%clk 0:04:07.1]} 9. Nxe5 {[%clk 0:04:46.3]} 9... dxe5 {[%clk
0:04:07]} 10. O-O {[%clk 0:04:43.1]} 10... h6 {[%clk 0:04:03.5]} 11. Bxf6 {[%clk
0:04:41.1]} 11... Qxf6 {[%clk 0:04:03.4]} 12. Qb3 {[%clk 0:04:34.7]} 12... c6
{[%clk 0:04:01.7]} 13. a4 {[%clk 0:04:32.7]} 13... Rb8 {[%clk 0:03:59.5]} 14.
Be2 {[%clk 0:04:17.4]} 14... Be6 {[%clk 0:03:55.4]} 15. Qc2 {[%clk 0:04:11.9]}
15... Rfd8 {[%clk 0:03:54.5]} 16. Rfd1 {[%clk 0:04:07.4]} 16... h5 {[%clk
0:03:50.1]} 17. Nc4 {[%clk 0:04:06.2]} 17... Bf8 {[%clk 0:03:40.8]} 18. Ne3
{[%clk 0:04:04.1]} 18... h4 {[%clk 0:03:32.1]} 19. h3 {[%clk 0:04:02.1]} 19...
Bh6 {[%clk 0:03:28.8]} 20. Ng4 {[%clk 0:03:59.6]} 20... Qf4 {[%clk 0:03:20.4]}
21. b4 {[%clk 0:03:34]} 21... Kh8 {[%clk 0:03:03.5]} 22. Rd3 {[%clk 0:03:20.4]}
22... f5 {[%clk 0:02:44.6]} 23. exf5 {[%clk 0:03:11.8]} 23... Bxf5 {[%clk
0:02:42.5]} 24. Rxd8+ {[%clk 0:03:10.2]} 24... Rxd8 {[%clk 0:02:42.4]} 25. Qb3
{[%clk 0:03:05.2]} 25... Qd2 {[%clk 0:02:34.6]} 26. Nxh6 {[%clk 0:02:55.3]}
26... Qxh6 {[%clk 0:02:31.5]} 27. Qf7 {[%clk 0:02:53.6]} 27... Qg7 {[%clk
0:02:27.3]} 28. Qxg7+ {[%clk 0:02:49]} 28... Kxg7 {[%clk 0:02:26.2]} 29. Rd1
{[%clk 0:02:48.6]} 29... Rxd1+ {[%clk 0:02:23.2]} 30. Bxd1 {[%clk 0:02:48.1]}
30... b6 {[%clk 0:02:17.9]} 31. Bf3 {[%clk 0:02:43.1]} 31... c5 {[%clk
0:02:16.6]} 32. bxc5 {[%clk 0:02:41.4]} 32... bxc5 {[%clk 0:02:15.7]} 33. Bd5
{[%clk 0:02:39.3]} 33... a5 {[%clk 0:02:12]} 34. Bc6 {[%clk 0:02:34.9]} 34...
Bd3 {[%clk 0:02:06.9]} 35. g3 {[%clk 0:02:31.9]} 35... g5 {[%clk 0:02:05.8]} 36.
gxh4 {[%clk 0:02:28.1]} 36... gxh4 {[%clk 0:02:04.7]} 37. Kg2 {[%clk 0:02:27.7]}
37... Kf6 {[%clk 0:02:02.9]} 38. Kf3 {[%clk 0:02:26.7]} 38... Kg5 {[%clk
0:02:01.6]} 39. Bd7 {[%clk 0:02:24.7]} 39... Bc2 {[%clk 0:01:51.9]} 40. Bb5
{[%clk 0:02:10.8]} 40... Bf5 {[%clk 0:01:48.4]} 41. Kg2 {[%clk 0:02:09.6]} 41...
Kf4 {[%clk 0:01:46.6]} 42. Bc6 {[%clk 0:02:08.1]} 42... Be4+ {[%clk 0:01:43.6]}
43. Bxe4 {[%clk 0:02:04.7]} 43... Kxe4 {[%clk 0:01:42.9]} 44. f3+ {[%clk
0:02:03.3]} 44... Ke3 {[%clk 0:01:36.9]} 45. c4 {[%clk 0:02:02.2]} 45... Ke2
{[%clk 0:01:35.9]} 46. f4 {[%clk 0:01:59]} 46... exf4 {[%clk 0:01:34.9]} 0-1

[Event "Live Chess"]
[Site "Chess.com"]
[Date "2024.06.01"]
[Round "-"]
[White "Tilbs_12"]
[Black "TheSmoulderingMaster"]
[Result "0-1"]
[WhiteElo "1645"]
[BlackElo "1753"]
[TimeControl "300"]
[EndTime "9:52:21 PDT"]
[Termination "TheSmoulderingMaster won by checkmate"]

1. d4 {[%clk 0:04:56.6]} 1... Nf6 {[%clk 0:04:58.8]} 2. Nc3 {[%clk 0:04:54.6]}
2... d6 {[%clk 0:04:56]} 3. e4 {[%clk 0:04:54]} 3... g6 {[%clk 0:04:55.1]} 4. f4
{[%clk 0:04:53.4]} 4... Bg7 {[%clk 0:04:54.2]} 5. Nf3 {[%clk 0:04:52.9]} 5...
O-O {[%clk 0:04:53.5]} 6. Be3 {[%clk 0:04:52.3]} 6... c6 {[%clk 0:04:52.8]} 7.
Be2 {[%clk 0:04:51.1]} 7... Bg4 {[%clk 0:04:50.4]} 8. O-O {[%clk 0:04:48.6]}
8... b5 {[%clk 0:04:48.6]} 9. a3 {[%clk 0:04:47.2]} 9... a5 {[%clk 0:04:47.1]}
10. b4 {[%clk 0:04:42.3]} 10... axb4 {[%clk 0:04:45.6]} 11. axb4 {[%clk
0:04:41.3]} 11... Nbd7 {[%clk 0:04:43.2]} 12. Qd2 {[%clk 0:04:37.4]} 12... Rc8
{[%clk 0:04:39.5]} 13. h3 {[%clk 0:04:33]} 13... Bxf3 {[%clk 0:04:36.9]} 14.
Bxf3 {[%clk 0:04:32.9]} 14... c5 {[%clk 0:04:36]} 15. Nxb5 {[%clk 0:04:29.5]}
15... cxb4 {[%clk 0:04:30.7]} 16. Qxb4 {[%clk 0:03:49]} 16... Rb8 {[%clk
0:04:27.6]} 17. Be2 {[%clk 0:03:43.2]} 17... e5 {[%clk 0:04:25]} 18. fxe5 {[%clk
0:03:41.8]} 18... dxe5 {[%clk 0:04:24.3]} 19. c4 {[%clk 0:03:31.3]} 19... exd4
{[%clk 0:04:21.9]} 20. Bxd4 {[%clk 0:03:27.5]} 20... Nxe4 {[%clk 0:04:19.7]} 21.
Bxg7 {[%clk 0:03:26.4]} 21... Kxg7 {[%clk 0:04:19.6]} 22. Bf3 {[%clk 0:03:23.1]}
22... Ndf6 {[%clk 0:04:12.2]} 23. Qb2 {[%clk 0:03:19.8]} 23... Nd2 {[%clk
0:04:03.3]} 24. Rf2 {[%clk 0:02:59.5]} 24... Nxc4 {[%clk 0:03:59.8]} 25. Qb4
{[%clk 0:02:44.2]} 25... Qd3 {[%clk 0:03:47.8]} 26. Rb1 {[%clk 0:02:22.1]} 26...
Ne5 {[%clk 0:03:43.5]} 27. Be2 {[%clk 0:02:03.5]} 27... Qe3 {[%clk 0:03:31.3]}
28. Qf4 {[%clk 0:01:50.9]} 28... Qxf4 {[%clk 0:03:22.2]} 29. Rxf4 {[%clk
0:01:50.8]} 29... Nd5 {[%clk 0:03:21.5]} 30. Re4 {[%clk 0:01:47.2]} 30... f6
{[%clk 0:03:13]} 31. Rd4 {[%clk 0:01:41.8]} 31... Rxb5 {[%clk 0:03:01.9]} 32.
Bxb5 {[%clk 0:01:39.1]} 32... Nc3 {[%clk 0:03:01.1]} 33. Rb3 {[%clk 0:01:35.2]}
33... Rc8 {[%clk 0:02:51.8]} 34. Rdb4 {[%clk 0:01:23.4]} 34... Nd5 {[%clk
0:02:42.7]} 35. Ra4 {[%clk 0:01:19]} 35... Rc1+ {[%clk 0:02:39.7]} 36. Kh2
{[%clk 0:01:16.7]} 36... Rc2 {[%clk 0:02:36.2]} 37. Ra7+ {[%clk 0:01:14.2]}
37... Kh6 {[%clk 0:02:34.8]} 38. Bd3 {[%clk 0:01:10.3]} 38... Rd2 {[%clk
0:02:30.2]} 39. Be4 {[%clk 0:01:09.2]} 39... Nf4 {[%clk 0:02:27.9]} 40. Rbb7
{[%clk 0:01:06.4]} 40... Kg5 {[%clk 0:02:24.6]} 41. Rxh7 {[%clk 0:01:04.7]}
41... Re2 {[%clk 0:02:21.3]} 42. Ba8 {[%clk 0:01:02.8]} 42... Kf5 {[%clk
0:02:11.9]} 43. Rhe7 {[%clk 0:01:01.5]} 43... Nfd3 {[%clk 0:02:01.7]} 44. Rec7
{[%clk 0:00:50.1]} 44... g5 {[%clk 0:01:56.4]} 45. Rc3 {[%clk 0:00:46.3]} 45...
Nf4 {[%clk 0:01:49.5]} 46. Ra5 {[%clk 0:00:42.9]} 46... Rb2 {[%clk 0:01:41.6]}
47. Kg3 {[%clk 0:00:41.5]} 47... Ne2+ {[%clk 0:01:35.2]} 48. Kh2 {[%clk
0:00:39.1]} 48... Nxc3 {[%clk 0:01:34.3]} 49. Kg3 {[%clk 0:00:35.5]} 49... Ne4+
{[%clk 0:01:32.7]} 50. Kh2 {[%clk 0:00:33.1]} 50... Kf4 {[%clk 0:01:28.5]} 51.
Kg1 {[%clk 0:00:31.4]} 51... Rb1+ {[%clk 0:01:25.4]} 52. Kh2 {[%clk 0:00:30.2]}
52... Rb2 {[%clk 0:01:24.2]} 53. Ra4 {[%clk 0:00:28.3]} 53... Nf3+ {[%clk
0:01:20.7]} 54. Kh1 {[%clk 0:00:22.4]} 54... Rb1# {[%clk 0:01:20.1]} 0-1

[Event "Live Chess"]
[Site "Chess.com"]
[Date "2024.06.01"]
[Round "-"]
[White "OliWally08"]
[Black "nigelst"]
[Result "1/2-1/2"]
[WhiteElo "1259"]
[BlackElo "1715"]
[TimeControl "300"]
[EndTime "9:52:41 PDT"]
[Termination "Game drawn - timeout vs insufficient material"]

1. e4 {[%clk 0:04:56.9]} 1... c6 {[%clk 0:04:58.9]} 2. Bc4 {[%clk 0:04:56]} 2...
d5 {[%clk 0:04:58.4]} 3. exd5 {[%clk 0:04:53.9]} 3... cxd5 {[%clk 0:04:57.9]} 4.
Bb3 {[%clk 0:04:53.4]} 4... Nf6 {[%clk 0:04:57.1]} 5. d4 {[%clk 0:04:48.7]} 5...
Nc6 {[%clk 0:04:56.3]} 6. Nc3 {[%clk 0:04:46.9]} 6... Bg4 {[%clk 0:04:53.8]} 7.
f3 {[%clk 0:04:41.5]} 7... Bf5 {[%clk 0:04:52.5]} 8. Nge2 {[%clk 0:04:37.3]}
8... e6 {[%clk 0:04:51.3]} 9. Bg5 {[%clk 0:04:35.7]} 9... Be7 {[%clk 0:04:49.5]}
10. Qd2 {[%clk 0:04:27]} 10... O-O {[%clk 0:04:47.7]} 11. h4 {[%clk 0:04:12.9]}
11... h6 {[%clk 0:04:45.8]} 12. Bxf6 {[%clk 0:04:11.2]} 12... Bxf6 {[%clk
0:04:44.1]} 13. g4 {[%clk 0:04:08.4]} 13... Bh7 {[%clk 0:04:40.5]} 14. O-O-O
{[%clk 0:03:50.6]} 14... Bxh4 {[%clk 0:04:34.2]} 15. f4 {[%clk 0:03:21.9]} 15...
a5 {[%clk 0:04:11.8]} 16. Rxh4 {[%clk 0:03:14.8]} 16... Qxh4 {[%clk 0:04:09]}
17. g5 {[%clk 0:03:14.2]} 17... hxg5 {[%clk 0:04:03.7]} 18. fxg5 {[%clk
0:03:13.1]} 18... Be4 {[%clk 0:03:44.3]} 19. Nxe4 {[%clk 0:03:00.1]} 19... Qxe4
{[%clk 0:03:39.7]} 20. Ng3 {[%clk 0:02:29.7]} 20... Qf3 {[%clk 0:03:26.7]} 21.
Qh2 {[%clk 0:02:15.7]} 21... Qf4+ {[%clk 0:03:07.2]} 22. Kb1 {[%clk 0:02:11.3]}
22... Qxg5 {[%clk 0:03:01.7]} 23. Rg1 {[%clk 0:01:57.9]} 23... Nxd4 {[%clk
0:02:28.3]} 24. Nh5 {[%clk 0:01:45.4]} 24... Nf3 {[%clk 0:02:01.7]} 25. Rxg5
{[%clk 0:01:26.9]} 25... Nxh2 {[%clk 0:02:00.2]} 26. Rxg7+ {[%clk 0:01:08.6]}
26... Kh8 {[%clk 0:01:57.7]} 27. c3 {[%clk 0:01:07.5]} 27... Rg8 {[%clk
0:01:40.5]} 28. Rxf7 {[%clk 0:01:06.1]} 28... Raf8 {[%clk 0:01:34.4]} 29. Rxb7
{[%clk 0:00:50.5]} 29... Rg1+ {[%clk 0:01:28]} 30. Kc2 {[%clk 0:00:49.1]} 30...
Nf3 {[%clk 0:01:17.1]} 31. Kd3 {[%clk 0:00:44.3]} 31... Rg4 {[%clk 0:01:03.4]}
32. Bc2 {[%clk 0:00:39.3]} 32... Ne1+ {[%clk 0:00:57.3]} 33. Kd2 {[%clk
0:00:34.5]} 33... Nxc2 {[%clk 0:00:55.5]} 34. Kxc2 {[%clk 0:00:34.4]} 34... a4
{[%clk 0:00:53.4]} 35. Ra7 {[%clk 0:00:32.2]} 35... Rf2+ {[%clk 0:00:44.3]} 36.
Kd3 {[%clk 0:00:27.9]} 36... Rf3+ {[%clk 0:00:34.8]} 37. Ke2 {[%clk 0:00:25.6]}
37... Rh3 {[%clk 0:00:33]} 38. Ra8+ {[%clk 0:00:15.9]} 38... Kh7 {[%clk
0:00:29.7]} 39. Ra7+ {[%clk 0:00:15.8]} 39... Kh6 {[%clk 0:00:28.3]} 40. Nf6
{[%clk 0:00:14.9]} 40... Rg2+ {[%clk 0:00:26.5]} 41. Kf1 {[%clk 0:00:14]} 41...
Rxb2 {[%clk 0:00:24.2]} 42. Rh7+ {[%clk 0:00:12.4]} 42... Kg6 {[%clk 0:00:22.6]}
43. Rxh3 {[%clk 0:00:12.3]} 43... Rxa2 {[%clk 0:00:18.5]} 44. Rf3 {[%clk
0:00:12.1]} 44... Ra1+ {[%clk 0:00:16.4]} 45. Kg2 {[%clk 0:00:12]} 45... a3
{[%clk 0:00:15.7]} 46. Kg3 {[%clk 0:00:11.9]} 46... a2 {[%clk 0:00:15]} 47. Nxd5
{[%clk 0:00:10.1]} 47... Rg1+ {[%clk 0:00:13.2]} 48. Kh2 {[%clk 0:00:08.5]}
48... a1=Q {[%clk 0:00:11.8]} 49. Rg3+ {[%clk 0:00:07.9]} 49... Rxg3 {[%clk
0:00:09.1]} 50. Kxg3 {[%clk 0:00:07.8]} 50... Qd1 {[%clk 0:00:07.5]} 51. Nf4+
{[%clk 0:00:07.7]} 51... Kf5 {[%clk 0:00:05.3]} 52. Kg2 {[%clk 0:00:07.1]} 52...
Qc2+ {[%clk 0:00:04]} 53. Kf3 {[%clk 0:00:06.3]} 53... Qxc3+ {[%clk 0:00:03.1]}
54. Kf2 {[%clk 0:00:05.5]} 54... Qd4+ {[%clk 0:00:01.4]} 55. Kg3 {[%clk
0:00:04.6]} 55... Qxf4+ {[%clk 0:00:00.9]} 56. Kg2 {[%clk 0:00:04.2]} 56... e5
{[%clk 0:00:00.5]} 57. Kh3 {[%clk 0:00:03.9]} 57... e4 {[%clk 0:00:00.4]} 58.
Kg2 {[%clk 0:00:03.2]} 58... e3 {[%clk 0:00:00.3]} 59. Kg1 {[%clk 0:00:02.9]}
59... e2 {[%clk 0:00:00.2]} 60. Kg2 {[%clk 0:00:02.5]} 1/2-1/2